bitfinex/quotes_ETHUSD_20241119
["timestamp","ask_amount","ask_price","bid_price","bid_amount"]
[1732037033810,3.21316,3112.2,3112.1,0.42439444]
[1732037034591,3.21326,3112.1,3112.0,0.42439444]
[1732037034903,3.21326,3112.1,3111.9,0.42439444]
[1732037035110,3.21336,3112.0,3111.9,0.42439444]
[1732037035484,3.21336,3112.0,3111.8,0.8726]
[1732037035809,3.21336,3112.0,3111.9,0.42413592]
[1732037036013,3.21336,3112.0,3111.8,0.8726]
[1732037036305,3.21326,3112.1,3111.8,0.8726]
[1732037036513,3.21304,3112.4,3112.0,0.42414574]
[1732037036665,3.21324,3112.2,3112.0,0.42414574]
[1732037037010,3.21326,3112.1,3112.0,0.84831619]
[1732037037207,3.21326,3112.1,3112.0,0.42414574]
[1732037037394,3.21326,3112.1,3112.0,3.56514521]
[1732037038409,3.21291,3112.5,3112.1,0.8921]
[1732037038609,3.21291,3112.5,3112.3,0.42404975]
[1732037039183,3.21295,3112.4,3112.1,0.8921]
[1732037039615,3.21291,3112.5,3112.1,0.8921]
[1732037039616,3.21286,3112.5,3112.1,0.8921]
[1732037039820,3.21286,3112.5,3112.2,0.45295857]
[1732037039972,3.21286,3112.5,3112.4,0.42406569]
[1732037040169,0.9176,3113.1,3112.5,0.9671]
[1732037040443,3.2124,3113.0,3112.7,0.42415229]
[1732037040641,3.21254,3112.8,3112.7,0.42415229]
[1732037040937,3.22264,3112.7,3112.6,0.4241407]
[1732037041109,3.21274,3112.6,3112.5,0.4241407]
[1732037041316,3.21292,3112.5,3112.2,0.942]
[1732037041508,3.22264,3112.7,3112.2,0.942]
[1732037041509,3.21274,3112.6,3112.2,0.942]
[1732037042732,3.22249,3112.9,3112.2,0.942]
[1732037042897,3.21302,3112.4,3112.2,0.942]
[1732037043100,3.21277,3112.6,3112.2,0.942]
[1732037043101,3.21286,3112.5,3112.2,0.942]
[1732037044439,3.22224,3113.1,3112.2,0.942]
[1732037044644,6.43456,3113.1,3112.8,0.42530334]
[1732037044945,3.21243,3112.9,3112.8,0.42530334]
[1732037045142,3.21233,3113.0,3112.2,0.942]
[1732037045330,3.21233,3113.0,3112.9,0.42560761]
[1732037045644,6.42474,3113.0,3112.9,0.42560761]
[1732037046305,6.42587,3112.5,3112.2,0.942]
[1732037046505,3.21303,3112.4,3112.2,0.942]
[1732037046837,3.21305,3112.3,3112.2,0.942]
[1732037048134,3.21345,3112.0,3111.9,0.9632]
[1732037049414,3.21345,3112.0,3111.2,3.21412]
[1732037049632,3.21345,3112.0,3111.3,5.115836]
[1732037049633,3.21361,3111.8,3111.3,5.115836]
[1732037049834,2.491353,3111.8,3111.3,5.125836]
[1732037050146,0.9181,3112.5,3111.3,5.115836]
[1732037050346,3.21366,3111.8,3111.4,0.56694349]
[1732037051353,3.21342,3112.0,3111.5,4.21686]
[1732037051536,3.21292,3112.5,3111.9,3.2134]
[1732037051764,3.21292,3112.5,3111.9,7.9553]
[1732037052058,3.21292,3112.5,3112.0,0.9785]
[1732037052216,3.21292,3112.5,3112.0,4.19179]
[1732037052412,3.21292,3112.5,3112.1,0.795519]
[1732037052663,3.21265,3112.7,3112.1,0.795519]
[1732037052826,3.21276,3112.6,3112.1,0.795519]
[1732037053030,4.18875,3113.1,3112.2,4.12466]
[1732037053031,3.2124,3113.0,3112.2,4.12466]
[1732037053360,3.21249,3112.9,3112.4,4.12443]
[1732037053529,3.21254,3112.8,3112.4,0.9115]
[1732037053725,3.21271,3112.7,3112.4,1.378966]
[1732037053954,3.21253,3112.9,3112.4,0.9115]
[1732037054159,3.21239,3113.0,3112.4,1.700264]
[1732037054160,3.21256,3112.8,3112.4,1.700264]
[1732037055061,6.42517,3112.8,3112.4,1.700264]
[1732037055256,3.21256,3112.8,3112.4,1.700264]
[1732037055507,3.21256,3112.8,3112.5,0.5463304]
[1732037055659,3.2123,3113.1,3112.7,0.9993]
[1732037056155,3.21234,3113.0,3112.7,0.9993]
[1732037056561,3.21234,3113.0,3112.7,1.420513]
[1732037056857,3.2123,3113.1,3112.7,1.420513]
[1732037058061,3.21202,3113.4,3112.8,0.9385]
[1732037058273,3.21187,3113.5,3112.8,0.9385]
[1732037058550,3.21189,3113.5,3113.0,0.9616]
[1732037058768,3.21189,3113.5,3113.1,0.417393]
[1732037058917,3.21165,3113.7,3113.1,0.417393]
[1732037059118,3.21147,3113.9,3113.1,0.9295]
[1732037059338,3.21147,3113.9,3113.5,0.9295]
[1732037060876,3.21157,3113.8,3113.5,0.9295]
[1732037061084,3.21171,3113.6,3113.5,0.9295]
[1732037063261,3.21157,3113.8,3113.5,0.9295]
[1732037063496,3.21136,3114.0,3113.5,0.9295]
[1732037063640,3.21136,3114.0,3113.5,4.1413]
[1732037063989,3.21111,3114.2,3113.7,3.7616]
[1732037064138,3.21111,3114.2,3114.1,0.42446789]
[1732037064347,3.21111,3114.2,3114.0,0.9295]
[1732037064785,3.21074,3114.6,3114.1,3.76115]
[1732037064958,3.21074,3114.6,3114.5,0.42414485]
[1732037065360,3.21074,3114.6,3114.1,0.55]
[1732037065748,0.9281,3115.0,3114.1,0.55]
[1732037065956,6.42067,3115.0,3114.6,0.42372436]
[1732037066302,3.21032,3115.0,3114.7,0.42372436]
[1732037066596,6.42068,3115.0,3114.7,0.42372436]
[1732037066764,3.21032,3115.0,3114.7,0.42372436]
[1732037066965,3.21054,3114.8,3114.6,0.42372436]
[1732037067186,3.21058,3114.7,3114.6,0.42372436]
[1732037067703,3.21078,3114.5,3114.4,0.42372436]
[1732037067871,3.21089,3114.4,3114.3,0.42372436]
[1732037068590,3.21089,3114.4,3114.2,1.34692436]
[1732037068805,3.21089,3114.4,3114.3,0.42372436]
[1732037069158,3.21089,3114.4,3114.2,1.34692436]
[1732037069505,3.21089,3114.4,3114.3,0.42372436]
[1732037069794,3.21099,3114.3,3114.2,0.9232]
[1732037070167,3.21149,3113.9,3113.7,0.9159]
[1732037070398,3.21151,3113.8,3113.7,0.9159]
[1732037070760,3.21171,3113.7,3113.2,0.9788]
[1732037071000,3.21181,3113.6,3113.2,0.9788]
[1732037071355,3.21181,3113.5,3113.2,0.9788]
[1732037071951,3.21168,3113.7,3113.2,0.9788]
[1732037072192,3.21171,3113.6,3113.5,0.42339701]
[1732037072399,3.21171,3113.6,3113.2,0.9788]
[1732037072898,3.21172,3113.6,3113.5,0.42349017]
[1732037073052,0.01,3114.3,3113.5,0.4234811]
[1732037073256,3.2116,3113.8,3113.6,0.42347607]
[1732037073497,3.2116,3113.8,3113.7,0.4234555]
[1732037073669,6.4232,3113.8,3113.7,0.4234555]
[1732037073873,6.4232,3113.8,3113.7,0.9734555]
[1732037074096,6.4232,3113.8,3113.7,0.97345908]
[1732037074702,6.4232,3113.8,3113.7,0.42345908]
[1732037078040,6.4332,3113.8,3113.7,0.42345908]
[1732037078313,7.07652,3113.8,3113.7,0.42345908]
[1732037082208,3.21171,3113.6,3113.5,0.42345977]
[1732037082390,3.21201,3113.4,3113.1,0.55]
[1732037082565,3.21181,3113.5,3113.1,0.55]
[1732037083098,0.01,3114.0,3113.2,0.9768]
[1732037083307,3.21136,3114.0,3113.8,1.5268]
[1732037083813,3.21113,3114.2,3113.8,1.5268]
[1732037083980,3.21113,3114.2,3113.9,0.47384]
[1732037084176,3.2209,3114.4,3113.9,0.47384]
[1732037084177,3.2209,3114.4,3114.0,0.55]
[1732037084375,3.21099,3114.3,3114.0,0.55]
[1732037084907,3.2111,3114.2,3114.0,0.55]
[1732037085391,3.2111,3114.2,3114.0,0.750064]
[1732037086408,0.01,3114.4,3114.0,0.750064]
[1732037086613,3.2112,3114.1,3114.0,0.750064]
[1732037087469,3.21113,3114.2,3114.0,0.750064]
[1732037087678,3.21099,3114.3,3114.0,0.750064]
[1732037088317,3.21115,3114.2,3114.0,0.750064]
[1732037088707,3.2112,3114.1,3114.0,0.750064]
[1732037090003,3.2114,3113.9,3113.8,0.9768]
[1732037090403,3.2114,3113.9,3113.4,1.5092]
[1732037090737,3.21157,3113.8,3113.4,36.5092]
[1732037090938,3.21157,3113.8,3113.6,0.55]
[1732037091536,3.21141,3113.9,3113.6,0.55]
[1732037091689,3.21141,3113.9,3113.6,3.69099947]
[1732037092464,3.2115,3113.9,3113.6,3.69099947]
[1732037092796,3.21161,3113.7,3113.6,3.69099947]
[1732037093091,1.0019,3114.2,3113.6,3.69099947]
[1732037093293,1.0019,3114.2,3113.5,0.772119]
[1732037093294,3.21115,3114.2,3113.9,0.9093]
[1732037093738,3.2113,3114.0,3113.9,1.4593]
[1732037094993,3.21159,3113.8,3113.6,0.9425]
[1732037095904,3.21135,3114.0,3113.6,0.9425]
[1732037096106,3.21151,3113.8,3113.6,0.9425]
[1732037096943,3.21161,3113.7,3113.6,0.55]
[1732037097329,3.21172,3113.6,3113.4,0.55]
[1732037097537,6.4231,3113.8,3113.4,0.55]
[1732037097731,3.21151,3113.8,3113.4,0.55]
[1732037097939,3.21151,3113.8,3113.6,0.55]
[1732037098329,6.42273,3114.0,3113.6,0.55]
[1732037098543,3.21135,3114.0,3113.9,0.42605634]
[1732037098767,3.21135,3114.0,3113.6,0.55]
[1732037098768,3.21156,3113.8,3113.6,0.55]
[1732037100656,3.21116,3114.2,3113.8,0.55]
[1732037101936,3.21092,3114.4,3113.8,0.55]
[1732037102122,3.21092,3114.4,3114.3,0.42585717]
[1732037102716,3.21092,3114.4,3113.8,3.76142]
[1732037102916,3.21092,3114.4,3114.3,0.42581807]
[1732037103960,3.21099,3114.3,3114.2,0.42581807]
[1732037104262,3.22109,3114.2,3114.1,0.42581807]
[1732037104413,3.22109,3114.2,3113.7,0.9317]
[1732037104414,6.42235,3114.2,3113.7,0.9317]
[1732037104614,0.9414,3115.0,3114.3,0.55]
[1732037104919,0.9414,3115.0,3114.5,0.4256919]
[1732037104920,3.22037,3115.0,3114.5,0.4256919]
[1732037105119,3.22037,3115.0,3114.4,3.677991]
[1732037105120,3.21044,3114.9,3114.4,0.467111]
[1732037105318,3.21044,3114.9,3114.5,0.55]
[1732037105562,0.01,3115.0,3114.5,3.7607]
[1732037105765,3.22028,3115.0,3114.9,0.42537011]
[1732037105921,3.22028,3115.0,3114.8,0.42537011]
[1732037106121,4.15963,3115.2,3114.9,0.42537011]
[1732037106327,3.21978,3115.5,3115.0,0.55]
[1732037106645,3.21978,3115.5,3115.2,0.42537011]
[1732037106646,0.01,3115.5,3115.2,0.42537011]
[1732037106943,3.21976,3115.5,3115.2,0.42537011]
[1732037107149,3.21976,3115.5,3115.3,0.42537011]
[1732037107331,3.21976,3115.5,3115.0,0.55]
[1732037107332,3.20996,3115.3,3115.2,0.42537011]
[1732037107519,3.20996,3115.3,3115.0,0.42537011]
[1732037107719,3.20996,3115.3,3115.0,0.42492771]
[1732037108030,0.01,3115.5,3115.1,0.42492771]
[1732037108031,3.21978,3115.5,3115.1,0.42492771]
[1732037108267,3.20989,3115.4,3115.1,0.42492771]
[1732037108591,3.20986,3115.4,3114.9,0.55]
[1732037108888,3.21978,3115.5,3115.0,3.684526]
[1732037108889,0.01,3115.5,3115.0,3.684526]
[1732037109195,0.01,3115.5,3115.0,0.474336]
[1732037109386,0.01,3115.5,3115.1,0.4234686]
[1732037109592,0.01,3115.5,3115.1,3.21009]
[1732037109750,3.21977,3115.5,3114.9,3.76032]
[1732037110254,3.21977,3115.5,3115.0,3.21024]
[1732037110571,0.01,3115.5,3115.0,3.21024]
[1732037110773,0.01,3115.5,3114.5,3.69099947]
[1732037110980,0.01,3115.5,3114.9,3.2103]
[1732037111775,0.01,3115.5,3115.0,3.21024]
[1732037111979,3.21977,3115.5,3114.7,3.21049]
[1732037112287,3.21006,3115.2,3114.5,3.21073]
[1732037112588,3.21006,3115.2,3114.6,3.21066]
[1732037112894,3.21996,3115.3,3114.8,3.21046]
[1732037113193,0.01,3115.3,3114.8,3.21046]
[1732037113693,3.21014,3115.2,3114.6,3.2106]
[1732037113989,0.01,3115.3,3114.6,4.16684495]
[1732037115063,3.22002,3115.3,3114.7,3.21054]
[1732037115280,3.21009,3115.2,3114.7,3.21054]
[1732037115687,3.21009,3115.2,3114.6,0.95624495]
[1732037115995,3.21009,3115.2,3114.6,7.37751495]
[1732037116168,3.21009,3115.2,3114.6,4.16684495]
[1732037116689,3.21009,3115.2,3114.6,7.37744495]
[1732037117000,0.01,3115.3,3114.6,4.16684495]
[1732037117168,3.21006,3115.2,3114.6,7.37746495]
[1732037117367,3.21997,3115.3,3114.7,3.2105]
[1732037117573,0.01,3115.3,3114.8,3.2104]
[1732037118122,0.01,3115.3,3114.7,4.35541444]
[1732037118123,3.22002,3115.3,3114.7,4.35541444]
[1732037118273,3.22002,3115.3,3114.7,3.2105]
[1732037118656,3.21012,3115.2,3114.5,4.14153]
[1732037119097,3.21012,3115.2,3114.5,7.35225]
[1732037119411,3.21012,3115.2,3114.6,0.735225]
[1732037119606,3.21017,3115.1,3114.6,0.735225]
[1732037120093,3.21012,3115.2,3114.6,0.735225]
[1732037120094,3.21027,3115.0,3114.6,0.735225]
[1732037120401,3.21027,3115.0,3114.5,4.14151]
[1732037120402,3.21055,3114.8,3114.5,0.9308]
[1732037120572,6.42112,3114.8,3114.3,35.0]
[1732037121009,0.01,3114.7,3113.9,3.21135]
[1732037121313,3.21111,3114.2,3113.9,0.9924]
[1732037121608,3.21101,3114.3,3113.9,0.9924]
[1732037122615,0.9898,3114.4,3113.9,4.13339947]
[1732037122776,3.21091,3114.4,3113.9,7.34479947]
[1732037122975,4.19067,3115.0,3114.3,3.21097]
[1732037123197,3.21037,3114.9,3114.4,0.9235]
[1732037123609,4.19067,3115.0,3114.4,0.9235]
[1732037123610,3.21055,3114.8,3114.4,0.9235]
[1732037123800,3.21055,3114.8,3114.1,3.21118]
[1732037124023,3.21055,3114.8,3114.1,4.21588]
[1732037124225,4.91965397,3115.0,3114.1,4.21582]
[1732037124428,3.21049,3114.8,3114.2,3.21103]
[1732037125142,3.21066,3114.7,3114.1,4.21582]
[1732037125438,3.21066,3114.7,3114.2,3.21109]
[1732037126322,0.01,3114.8,3114.2,3.21109]
[1732037126538,0.9804,3115.0,3114.5,3.21078]
[1732037126836,7.34017,3115.3,3114.7,3.21051]
[1732037127051,3.21009,3115.2,3114.7,3.21051]
[1732037127200,4.13013,3115.3,3114.7,3.2105]
[1732037127595,4.13013,3115.3,3114.6,0.9228]
[1732037127800,4.13013,3115.3,3114.7,3.21058]
[1732037128049,3.21031,3115.0,3114.7,0.73441]
[1732037128197,0.9201,3115.3,3114.6,0.9228]
[1732037128400,3.21022,3115.1,3114.6,0.9228]
[1732037129026,3.21022,3115.1,3114.6,4.13347]
[1732037129842,3.21032,3115.0,3114.6,0.9228]
[1732037130649,3.21038,3114.9,3114.6,0.9228]
[1732037131028,3.22022,3115.1,3114.6,0.9228]
[1732037131234,3.21035,3115.0,3114.6,0.9228]
[1732037132661,3.21027,3115.0,3114.6,0.9228]
[1732037132834,3.21033,3115.0,3114.6,0.9228]
[1732037133033,3.22023,3115.1,3114.6,0.9228]
[1732037133248,3.21033,3115.0,3114.6,0.9228]
[1732037134467,3.22026,3115.1,3114.6,0.9228]
[1732037134763,3.21032,3115.0,3114.6,0.9228]
[1732037135439,3.22026,3115.1,3114.6,0.9228]
[1732037135776,3.22026,3115.1,3114.6,4.13347]
[1732037135921,3.22025,3115.1,3114.6,0.9228]
[1732037136122,3.21027,3115.0,3114.6,0.9228]
[1732037136427,0.423035,3115.1,3114.3,0.9381]
[1732037136428,3.21057,3114.8,3114.3,0.9381]
[1732037137151,0.9668,3114.9,3114.3,0.9381]
[1732037137357,3.21047,3114.8,3114.3,0.9381]
[1732037137928,3.21047,3114.8,3114.3,4.14903]
[1732037138126,0.9668,3114.9,3114.4,3.2108]
[1732037138127,0.01,3114.9,3114.4,3.2108]
[1732037139070,0.01,3114.9,3114.5,3.21077]
[1732037139281,3.21049,3114.8,3114.3,0.9381]
[1732037139577,0.01,3114.9,3114.3,0.9381]
[1732037139782,3.21048,3114.8,3114.3,4.14908]
[1732037140482,0.01,3114.9,3114.3,4.14908]
[1732037140690,3.21053,3114.8,3114.3,0.9381]
[1732037141357,0.9954,3115.2,3114.3,4.07909947]
[1732037141679,3.21009,3115.2,3114.7,0.9926]
[1732037141880,3.21009,3115.2,3114.7,4.20312]
[1732037142083,3.21009,3115.2,3114.8,0.420312]
[1732037142284,4.18804,3115.5,3114.8,0.420312]
[1732037142489,4.18804,3115.5,3114.9,3.21027]
[1732037142490,0.01,3115.5,3114.9,3.21027]
[1732037142689,3.20988,3115.4,3114.9,3.21027]
[1732037143245,3.21977,3115.5,3114.9,3.21027]
[1732037143445,3.21977,3115.5,3115.0,0.321027]
[1732037144063,3.20996,3115.3,3115.0,0.321027]
[1732037144380,3.20996,3115.3,3114.8,3.21046]
[1732037144685,3.20996,3115.3,3114.7,0.9926]
[1732037144889,3.20987,3115.4,3114.8,3.21046]
[1732037145190,0.01,3115.5,3115.0,3.21019]
[1732037145831,3.20987,3115.4,3114.9,0.420306]
[1732037145980,0.01,3115.5,3115.0,3.8943746]
[1732037146251,3.21977,3115.5,3115.0,3.8943746]
[1732037146556,0.01,3115.5,3115.0,3.8943246]
[1732037146758,3.20963,3115.7,3115.1,0.963]
[1732037146957,3.20963,3115.7,3115.2,3.627381]
[1732037147160,3.21963,3115.7,3115.2,0.417321]
[1732037147674,0.9682,3115.8,3115.2,0.417321]
[1732037147862,3.2194,3115.9,3115.3,3.20995]
[1732037148063,0.01,3115.9,3115.4,3.5725771]
[1732037148300,3.21935,3115.9,3115.4,3.5725771]
[1732037149251,6.42878,3115.9,3115.4,0.3627271]
[1732037149451,3.21935,3115.9,3115.4,0.3627271]
[1732037149664,6.4192,3115.7,3115.1,4.17309]
[1732037149863,3.20958,3115.7,3115.1,7.38319]
[1732037150091,0.01,3115.9,3115.4,3.20985]
[1732037150404,0.01,3115.9,3115.3,3.20987]
[1732037150405,3.20926,3116.0,3115.5,3.20969]
[1732037150964,0.01,3115.9,3115.1,0.963]
[1732037151162,0.01,3115.9,3115.4,3.20978]
[1732037151361,3.2194,3115.9,3115.5,0.320978]
[1732037151604,3.2194,3115.9,3115.4,3.20984]
[1732037152375,3.20946,3115.8,3115.2,6.42005]
[1732037152729,3.20946,3115.8,3115.3,0.417306]
[1732037153162,3.20946,3115.8,3115.3,3.627266]
[1732037153368,0.01,3115.9,3115.3,0.417306]
[1732037153563,3.21935,3115.9,3115.4,0.3627316]
[1732037153812,3.20944,3115.8,3115.4,0.3627316]
[1732037154102,0.01,3115.9,3115.4,0.3627316]
[1732037154519,3.21937,3115.9,3115.4,0.3627316]
[1732037154678,0.01,3115.9,3115.5,3.20972]
[1732037155005,4.1753,3116.1,3115.6,1.0097]
[1732037155389,4.1753,3116.1,3115.6,4.67755516]
[1732037155589,3.20891,3116.4,3115.6,4.67755516]
[1732037155590,0.01,3116.3,3115.7,3.20945]
[1732037155805,0.01,3116.3,3115.8,3.20943]
[1732037155968,0.01,3116.3,3115.9,3.851218]
[1732037156163,0.01,3116.3,3115.9,3.20933]
[1732037156578,0.01,3116.3,3116.0,0.949]
[1732037156784,0.01,3116.3,3116.0,4.15822]
[1732037157197,3.20873,3116.5,3116.0,4.15822]
[1732037157386,3.20873,3116.5,3116.1,0.415822]
[1732037157587,3.20873,3116.5,3116.0,4.15822]
[1732037158200,0.01,3116.4,3116.0,0.949]
[1732037158525,3.21884,3116.4,3116.0,0.949]
[1732037159126,3.209,3116.3,3116.0,0.949]
[1732037159285,3.20904,3116.2,3116.0,0.949]
[1732037159832,3.21884,3116.4,3116.0,0.949]
[1732037160132,6.42775,3116.4,3116.0,0.949]
[1732037160421,3.21884,3116.4,3116.0,0.949]
[1732037161030,0.01,3116.4,3116.0,0.949]
[1732037161536,3.20897,3116.3,3116.0,0.949]
[1732037161693,0.01,3116.2,3115.5,0.9414]
[1732037161910,0.01,3116.2,3115.2,0.9414]
[1732037161911,3.20965,3115.6,3115.2,0.9414]
[1732037162238,3.20976,3115.5,3115.2,0.9414]
[1732037162722,3.21957,3115.7,3115.2,0.9414]
[1732037163081,3.20976,3115.5,3115.2,0.9414]
[1732037163484,0.01,3115.7,3115.2,0.9414]
[1732037163715,0.01,3115.7,3115.2,4.15143]
[1732037164197,3.21962,3115.7,3115.2,0.9414]
[1732037164396,3.21982,3115.5,3115.2,0.9414]
[1732037164671,3.20986,3115.4,3114.9,0.9431]
[1732037165121,3.21003,3115.3,3114.9,0.9431]
[1732037165329,3.21045,3114.9,3114.5,0.9431]
[1732037165553,3.2105,3114.8,3114.2,0.9431]
[1732037165917,3.21068,3114.6,3114.2,0.9431]
[1732037167252,6.42144,3114.6,3114.2,0.9431]
[1732037167557,3.21068,3114.6,3114.2,0.9431]
[1732037168268,3.21069,3114.6,3114.2,0.9431]
[1732037169432,0.01,3115.2,3114.6,3.21065]
[1732037169637,0.01,3115.0,3114.7,0.9993]
[1732037170021,3.21014,3115.2,3114.7,1.420295]
[1732037170229,4.15452,3115.3,3114.7,1.420295]
[1732037170430,4.1545,3115.3,3114.7,4.630785]
[1732037170658,3.21008,3115.2,3114.8,0.4630785]
[1732037170848,0.01,3115.0,3114.8,0.4630785]
[1732037171040,0.01,3115.0,3114.7,0.9993]
[1732037172263,0.01,3115.2,3114.7,0.9993]
[1732037172427,3.22002,3115.3,3114.7,4.20986]
[1732037172613,3.21007,3115.2,3114.8,0.420986]
[1732037173257,3.22007,3115.2,3114.7,0.9993]
[1732037173415,3.21017,3115.1,3114.7,0.9993]
[1732037174125,3.20992,3115.4,3114.8,3.21041]
[1732037174315,0.01,3115.5,3115.0,3.21026]
[1732037174765,3.2097,3115.6,3115.1,0.9411]
[1732037175063,0.01,3115.7,3115.2,0.415136]
[1732037175353,0.01,3115.6,3115.2,0.415136]
[1732037175544,3.20963,3115.7,3115.2,0.415136]
[1732037176065,3.2195,3115.8,3115.2,0.415136]
[1732037176066,3.21967,3115.6,3115.2,0.415136]
[1732037176217,3.21967,3115.6,3115.3,0.4566336]
[1732037177060,3.21967,3115.6,3115.1,0.9411]
[1732037178828,6.42941,3115.6,3115.1,0.9411]
[1732037179437,3.21967,3115.6,3115.1,0.9411]
[1732037179858,0.01,3115.6,3115.1,4.15121]
[1732037180058,0.01,3115.9,3115.2,6.35102947]
[1732037180225,3.21942,3115.9,3115.4,3.20983]
[1732037180426,3.21942,3115.9,3115.5,0.641978]
[1732037180625,0.01,3115.9,3115.3,3.20996]
[1732037180867,3.20917,3116.1,3115.6,3.20962]
[1732037181071,0.01,3116.2,3115.7,4.22373]
[1732037181072,3.21909,3116.2,3115.7,4.22373]
[1732037181233,0.01,3116.2,3115.8,0.422373]
[1732037181866,0.01,3116.4,3115.9,3.20934]
[1732037182059,3.20878,3116.5,3115.9,3.6739453]
[1732037182060,3.21879,3116.5,3115.9,3.6739453]
[1732037182268,0.9546,3116.7,3115.9,3.6739453]
[1732037182269,0.01,3116.3,3115.9,0.4646053]
[1732037182648,3.2091,3116.2,3115.9,0.4646053]
[1732037182965,0.01,3116.3,3115.8,3.20944]
[1732037183178,0.01,3116.3,3115.9,3.20933]
[1732037183424,3.20884,3116.4,3115.9,3.20933]
[1732037183425,3.20884,3116.4,3116.0,0.641877]
[1732037183583,3.21872,3116.5,3116.0,0.641877]
[1732037183881,0.01,3116.5,3116.0,3.851107]
[1732037184051,3.21873,3116.5,3116.1,0.9489]
[1732037184376,3.21873,3116.5,3116.1,1.364722]
[1732037185935,3.20899,3116.3,3115.8,0.9584]
[1732037186276,0.01,3116.5,3115.8,0.9584]
[1732037186277,3.21878,3116.5,3115.8,0.9584]
[1732037186449,6.41798,3116.3,3115.8,0.9584]
[1732037186648,3.20897,3116.3,3115.8,0.9584]
[1732037187062,3.21897,3116.3,3115.8,0.9584]
[1732037187281,3.21914,3116.1,3115.6,3.20962]
[1732037188287,3.21914,3116.1,3115.5,36.355581]
[1732037188462,3.20926,3116.0,3115.5,39.565331]
[1732037188669,3.21914,3116.1,3115.5,39.565331]
[1732037188963,3.21914,3116.1,3115.6,6.35061947]
[1732037189176,0.01,3116.1,3115.6,6.35058947]
[1732037189385,0.01,3116.1,3115.6,9.56015947]
[1732037189586,3.21886,3116.4,3115.6,3.14099947]
[1732037189756,3.21886,3116.4,3115.9,3.20928]
[1732037191001,3.21863,3116.6,3115.9,0.79094]
[1732037191204,3.20874,3116.5,3116.0,3.20919]
[1732037192460,3.20885,3116.4,3115.9,3.2093]
[1732037192887,3.209,3116.3,3115.8,0.9406]
[1732037193104,3.209,3116.3,3115.8,4.14999]
[1732037193472,3.209,3116.3,3115.8,0.9406]
[1732037193682,3.209,3116.3,3115.8,4.61319995]
[1732037193906,3.21885,3116.4,3115.9,3.20934]
[1732037194062,3.21885,3116.4,3115.8,4.61319995]
[1732037194259,3.21885,3116.4,3115.8,1.40375995]
[1732037194463,3.21885,3116.4,3115.8,4.61313995]
[1732037194669,4.15925,3116.4,3115.8,4.61313995]
[1732037195384,4.15925,3116.4,3115.8,7.82251995]
[1732037195708,0.9504,3116.4,3115.9,0.837252]
[1732037195862,3.21883,3116.4,3115.9,4.046532]
[1732037196197,0.01,3116.4,3116.0,3.20923]
[1732037196359,0.01,3116.4,3116.1,0.4046482]
[1732037196763,0.01,3116.4,3116.0,3.20923]
[1732037196960,0.01,3116.4,3115.9,0.837252]
[1732037197312,3.20893,3116.3,3115.8,4.15004]
[1732037198005,3.20909,3116.2,3115.8,0.9406]
[1732037198212,3.20918,3116.1,3115.5,3.20973]
[1732037198515,3.20929,3116.0,3115.5,4.16513]
[1732037198679,3.20929,3116.0,3115.5,39.16513]
[1732037198865,6.42881,3115.9,3115.5,35.9554]
[1732037199065,3.2194,3115.9,3115.5,35.9554]
[1732037199266,3.2194,3115.9,3115.5,39.09639947]
[1732037199673,0.01,3115.9,3115.5,39.09639947]
[1732037199874,0.01,3116.1,3115.5,42.30608947]
[1732037200180,4.2093,3116.3,3115.5,42.30608947]
[1732037200181,0.01,3115.9,3115.5,42.30608947]
[1732037200395,0.01,3115.9,3115.5,0.9554]
[1732037200396,3.21939,3115.9,3115.5,0.9554]
[1732037200717,3.20957,3115.7,3115.2,4.69376]
[1732037200870,3.2097,3115.6,3115.2,0.9337]
[1732037201075,0.01,3115.6,3115.2,0.9337]
[1732037201386,3.2197,3115.6,3115.2,0.9337]
[1732037201568,3.2197,3115.6,3115.2,4.07469947]
[1732037201772,3.2197,3115.6,3115.2,7.28470947]
[1732037201773,0.01,3115.6,3115.2,7.28470947]
[1732037202112,0.01,3115.6,3115.3,3.20995]
[1732037202327,3.21936,3115.9,3115.3,0.55]
[1732037202679,0.09681094,3116.4,3115.5,3.20968]
[1732037202680,3.2192,3116.1,3115.5,3.20968]
[1732037202879,3.2192,3116.1,3115.6,0.55]
[1732037203304,6.42842,3116.1,3115.6,0.55]
[1732037203508,0.01,3116.1,3115.6,0.55]
[1732037203713,3.01,3116.7,3115.2,0.9337]
[1732037203714,0.993,3115.9,3115.2,0.9337]
[1732037203873,0.01,3115.5,3115.2,0.9337]
[1732037204388,0.01,3115.7,3115.3,35.0]
[1732037204801,0.01,3115.7,3115.2,3.21]
[1732037205015,0.01,3115.7,3115.1,4.94231568]
[1732037205316,3.21955,3115.7,3115.2,3.20999]
[1732037205617,3.21956,3115.7,3115.3,0.55]
[1732037206677,0.01,3115.7,3115.3,3.75994]
[1732037207093,3.21957,3115.7,3115.3,0.55]
[1732037208217,0.01,3115.7,3115.3,5.09263671]
[1732037208620,0.01,3115.7,3115.3,1.88275671]
[1732037208775,0.993,3115.9,3115.5,0.55]
[1732037208976,0.01,3116.0,3115.6,1.506]
[1732037209178,3.20929,3116.0,3115.6,1.506]
[1732037209417,3.21929,3116.0,3115.6,1.506]
[1732037209575,3.20934,3115.9,3115.6,1.506]